[Event "Titled Tuesday Blitz May 31 Late 2022"]
[White "Pakleza, Zbigniew"]
[Black "Przybylski, Wojciech"]
[WhiteFideId "1119290"]
[BlackFideId "1117599"]
[WhiteElo "2467"]
[BlackElo "2133"]
[Result "1-0"]
[Round "11"]
[TimeControl "180+1"]
[Date "2022.05.31"]
[WhiteClock "0:00:34"]
[BlackClock "0:00:05"]

1. d4 {[%clk 0:03:00]}  Nf6 {[%clk 0:02:52]} 2. Nf3 {[%clk 0:03:01]}  e6 {[%clk 0:02:47]} 3. Bf4 {[%clk 0:03:00]}  Be7 {[%clk 0:02:45]} 4. e3 {[%clk 0:03:00]}  O-O {[%clk 0:02:44]} 5. h3 {[%clk 0:03:00]}  b6 {[%clk 0:02:44]} 6. Nbd2 {[%clk 0:03:00]}  Bb7 {[%clk 0:02:44]} 7. Bd3 {[%clk 0:03:00]}  c5 {[%clk 0:02:44]} 8. c3 {[%clk 0:03:00]}  d6 {[%clk 0:02:37]} 9. Qe2 {[%clk 0:02:58]}  Nbd7 {[%clk 0:02:36]} 10. O-O {[%clk 0:02:58]}  a6 {[%clk 0:02:34]} 11. a4 {[%clk 0:02:53]}  cxd4 {[%clk 0:02:32]} 12. exd4 {[%clk 0:02:53]}  Nd5 {[%clk 0:02:32]} 13. Bh2 {[%clk 0:02:53]}  N7f6 {[%clk 0:02:32]} 14. Rfe1 {[%clk 0:02:53]}  Re8 {[%clk 0:02:31]} 15. Nc4 {[%clk 0:02:40]}  h6 {[%clk 0:02:27]} 16. Qc2 {[%clk 0:02:26]}  Rc8 {[%clk 0:02:24]} 17. Qb3 {[%clk 0:02:19]}  Rc6 {[%clk 0:02:20]} 18. Nfd2 {[%clk 0:01:51]}  Qa8 {[%clk 0:01:56]} 19. Bf1 {[%clk 0:01:46]}  Rec8 {[%clk 0:01:48]} 20. Na3 {[%clk 0:01:31]}  Nh5 {[%clk 0:01:32]} 21. c4 {[%clk 0:01:18]}  Ndf4 {[%clk 0:01:22]} 22. d5 {[%clk 0:01:15]}  Rc5 {[%clk 0:01:14]} 23. g3 {[%clk 0:01:14]}  Ng6 {[%clk 0:01:06]} 24. dxe6 {[%clk 0:01:12]}  fxe6 {[%clk 0:01:02]} 25. Rxe6 {[%clk 0:01:11]}  Nf6 {[%clk 0:00:43]} 26. Rae1 {[%clk 0:01:06]}  Re5 {[%clk 0:00:28]} 27. Qxb6 {[%clk 0:00:56]}  Bd8 {[%clk 0:00:17]} 28. Qxd6 {[%clk 0:00:53]}  Bc7 {[%clk 0:00:17]} 29. Qd3 {[%clk 0:00:45]}  Rd8 {[%clk 0:00:17]} 30. Qxg6 {[%clk 0:00:44]}  Rxe1 {[%clk 0:00:15]} 31. Rxe1 {[%clk 0:00:44]}  Rxd2 {[%clk 0:00:15]} 32. Re7 {[%clk 0:00:34]}  Ne8 {[%clk 0:00:05]} 33. Rxe8+ {[%clk 0:00:34]} 1-0


[Site "https://www.chess.com"]

[Event "Titled Tuesday Blitz May 31 Late 2022"]
[White "Preotu, Razvan"]
[Black "Omariev, Maksim"]
[WhiteFideId "2613280"]
[BlackFideId "4193423"]
[WhiteElo "2407"]
[BlackElo "2544"]
[Result "1-0"]
[Round "11"]
[TimeControl "180+1"]
[Date "2022.05.31"]
[WhiteClock "0:00:55"]
[BlackClock "0:00:01"]

1. e4 {[%clk 0:03:00]}  c5 {[%clk 0:02:59]} 2. Nf3 {[%clk 0:02:58]}  d6 {[%clk 0:03:00]} 3. d4 {[%clk 0:02:56]}  cxd4 {[%clk 0:03:00]} 4. Nxd4 {[%clk 0:02:57]}  Nf6 {[%clk 0:03:00]} 5. Nc3 {[%clk 0:02:57]}  a6 {[%clk 0:03:00]} 6. Be2 {[%clk 0:02:58]}  e6 {[%clk 0:03:00]} 7. Be3 {[%clk 0:02:56]}  Be7 {[%clk 0:02:59]} 8. g4 {[%clk 0:02:56]}  b5 {[%clk 0:02:56]} 9. g5 {[%clk 0:02:55]}  Nfd7 {[%clk 0:02:57]} 10. a3 {[%clk 0:02:56]}  Bb7 {[%clk 0:02:57]} 11. Qd2 {[%clk 0:02:56]}  Nb6 {[%clk 0:02:43]} 12. f4 {[%clk 0:02:47]}  N8d7 {[%clk 0:02:41]} 13. f5 {[%clk 0:02:11]}  exf5 {[%clk 0:02:25]} 14. Nxf5 {[%clk 0:02:09]}  O-O {[%clk 0:02:09]} 15. Qd4 {[%clk 0:02:08]}  f6 {[%clk 0:02:05]} 16. O-O-O {[%clk 0:01:49]}  Rc8 {[%clk 0:01:06]} 17. Rhg1 {[%clk 0:01:45]}  Nc4 {[%clk 0:00:29]} 18. g6 {[%clk 0:01:17]}  Nxe3 {[%clk 0:00:04]} 19. Qxe3 {[%clk 0:00:56]}  Kh8 {[%clk 0:00:04]} 20. Qh3 {[%clk 0:00:54]}  h6 {[%clk 0:00:01]} 21. Nxh6 {[%clk 0:00:55]} 1-0


[Site "https://www.chess.com"]

[Event "Titled Tuesday Blitz May 31 Late 2022"]
[White "Reprintsev, Alexander"]
[Black "Rios Escobar, Adan"]
[WhiteFideId "14100541"]
[BlackFideId "3403645"]
[WhiteElo "2108"]
[BlackElo "2424"]
[Result "1-0"]
[Round "11"]
[TimeControl "180+1"]
[Date "2022.06.01"]
[WhiteClock "0:00:13"]
[BlackClock "0:00:09"]

1. e4 {[%clk 0:00:15]}  c5 {[%clk 0:02:55]} 2. b3 {[%clk 0:00:14]}  d5 {[%clk 0:02:53]} 3. exd5 {[%clk 0:00:14]}  Qxd5 {[%clk 0:02:54]} 4. Nc3 {[%clk 0:00:14]}  Qd6 {[%clk 0:02:45]} 5. Bb2 {[%clk 0:00:15]}  Nf6 {[%clk 0:02:43]} 6. Qe2 {[%clk 0:00:16]}  Nc6 {[%clk 0:02:41]} 7. O-O-O {[%clk 0:00:16]}  a6 {[%clk 0:02:39]} 8. Nf3 {[%clk 0:00:16]}  Bg4 {[%clk 0:02:39]} 9. Qe3 {[%clk 0:00:14]}  Nd4 {[%clk 0:02:37]} 10. Be2 {[%clk 0:00:14]}  Nxe2+ {[%clk 0:02:36]} 11. Nxe2 {[%clk 0:00:14]}  e6 {[%clk 0:02:35]} 12. Ne5 {[%clk 0:00:14]}  Bxe2 {[%clk 0:02:34]} 13. Qxe2 {[%clk 0:00:13]}  Be7 {[%clk 0:02:31]} 14. Nc4 {[%clk 0:00:13]}  Qd8 {[%clk 0:02:25]} 15. g4 {[%clk 0:00:14]}  O-O {[%clk 0:02:11]} 16. g5 {[%clk 0:00:14]}  Nd5 {[%clk 0:02:11]} 17. Qe5 {[%clk 0:00:14]}  f6 {[%clk 0:02:01]} 18. Qxe6+ {[%clk 0:00:14]}  Kh8 {[%clk 0:02:01]} 19. Rde1 {[%clk 0:00:14]}  Re8 {[%clk 0:01:55]} 20. Qf7 {[%clk 0:00:13]}  b5 {[%clk 0:01:41]} 21. Ne3 {[%clk 0:00:12]}  Nxe3 {[%clk 0:00:33]} 22. Rxe3 {[%clk 0:00:13]}  Ra7 {[%clk 0:00:09]} 23. gxf6 {[%clk 0:00:13]} 1-0


[Site "https://www.chess.com"]

[Event "Titled Tuesday Blitz May 31 Late 2022"]
[White "Rosen, Eric"]
[Black "Jarocka, Liwia"]
[WhiteFideId "2032562"]
[BlackFideId "21807558"]
[WhiteElo "2362"]
[BlackElo "1887"]
[Result "1-0"]
[Round "11"]
[TimeControl "180+1"]
[Date "2022.05.31"]
[WhiteClock "0:00:05"]
[BlackClock "0:00:02"]

1. d4 {[%clk 0:02:54]}  d5 {[%clk 0:02:56]} 2. Bf4 {[%clk 0:02:54]}  Nf6 {[%clk 0:02:54]} 3. e3 {[%clk 0:02:52]}  e6 {[%clk 0:02:53]} 4. Nf3 {[%clk 0:02:52]}  Bd6 {[%clk 0:02:51]} 5. Ne5 {[%clk 0:02:53]}  O-O {[%clk 0:02:49]} 6. Nd2 {[%clk 0:02:53]}  c5 {[%clk 0:02:50]} 7. c3 {[%clk 0:02:54]}  Qc7 {[%clk 0:02:49]} 8. Bd3 {[%clk 0:02:53]}  Nbd7 {[%clk 0:02:49]} 9. Ndf3 {[%clk 0:02:46]}  Ne4 {[%clk 0:02:47]} 10. O-O {[%clk 0:02:42]}  f6 {[%clk 0:02:45]} 11. Nxd7 {[%clk 0:02:41]}  Bxd7 {[%clk 0:02:44]} 12. Bxd6 {[%clk 0:02:32]}  Nxd6 {[%clk 0:02:36]} 13. Re1 {[%clk 0:02:27]}  Be8 {[%clk 0:02:33]} 14. Qb1 {[%clk 0:02:23]}  g6 {[%clk 0:02:25]} 15. e4 {[%clk 0:02:14]}  dxe4 {[%clk 0:02:22]} 16. Bxe4 {[%clk 0:02:14]}  Bf7 {[%clk 0:02:19]} 17. Qc1 {[%clk 0:02:01]}  cxd4 {[%clk 0:02:14]} 18. Nxd4 {[%clk 0:02:01]}  e5 {[%clk 0:02:11]} 19. Nf3 {[%clk 0:01:50]}  Nxe4 {[%clk 0:02:01]} 20. Rxe4 {[%clk 0:01:50]}  Rae8 {[%clk 0:01:59]} 21. Qh6 {[%clk 0:01:45]}  Bd5 {[%clk 0:01:52]} 22. Re3 {[%clk 0:01:45]}  Qg7 {[%clk 0:01:50]} 23. Qh4 {[%clk 0:01:36]}  Rd8 {[%clk 0:01:44]} 24. Rae1 {[%clk 0:01:32]}  Rfe8 {[%clk 0:01:37]} 25. Qa4 {[%clk 0:01:09]}  a6 {[%clk 0:01:33]} 26. h3 {[%clk 0:01:09]}  Qf7 {[%clk 0:01:31]} 27. b3 {[%clk 0:00:50]}  Bc6 {[%clk 0:01:31]} 28. Qb4 {[%clk 0:00:49]}  Qf8 {[%clk 0:01:28]} 29. Qc4+ {[%clk 0:00:49]}  Qf7 {[%clk 0:01:27]} 30. Qb4 {[%clk 0:00:49]}  Qf8 {[%clk 0:01:27]} 31. Qh4 {[%clk 0:00:40]}  Qe7 {[%clk 0:01:17]} 32. c4 {[%clk 0:00:31]}  Qf7 {[%clk 0:01:09]} 33. Qg3 {[%clk 0:00:22]}  Bxf3 {[%clk 0:01:04]} 34. Qxf3 {[%clk 0:00:22]}  Rd2 {[%clk 0:00:59]} 35. R3e2 {[%clk 0:00:23]}  Red8 {[%clk 0:00:54]} 36. Kh2 {[%clk 0:00:23]}  Kg7 {[%clk 0:00:50]} 37. h4 {[%clk 0:00:22]}  Qc7 {[%clk 0:00:47]} 38. g3 {[%clk 0:00:20]}  h5 {[%clk 0:00:40]} 39. Qe3 {[%clk 0:00:20]}  Rxe2 {[%clk 0:00:34]} 40. Rxe2 {[%clk 0:00:21]}  Qd6 {[%clk 0:00:31]} 41. Qe4 {[%clk 0:00:15]}  Rd7 {[%clk 0:00:24]} 42. Rc2 {[%clk 0:00:16]}  Qd4 {[%clk 0:00:23]} 43. Qxd4 {[%clk 0:00:14]}  exd4 {[%clk 0:00:23]} 44. Kg2 {[%clk 0:00:13]}  f5 {[%clk 0:00:24]} 45. f4 {[%clk 0:00:12]}  Kf6 {[%clk 0:00:22]} 46. Kf2 {[%clk 0:00:09]}  Ke6 {[%clk 0:00:22]} 47. Re2+ {[%clk 0:00:09]}  Kd6 {[%clk 0:00:21]} 48. Re5 {[%clk 0:00:09]}  Kc6 {[%clk 0:00:17]} 49. Ke2 {[%clk 0:00:08]}  Rd6 {[%clk 0:00:16]} 50. Kd3 {[%clk 0:00:09]}  b5 {[%clk 0:00:16]} 51. c5 {[%clk 0:00:07]}  Rd7 {[%clk 0:00:08]} 52. b4 {[%clk 0:00:07]}  a5 {[%clk 0:00:08]} 53. Re6+ {[%clk 0:00:05]}  Kd5 {[%clk 0:00:03]} 54. Rd6+ {[%clk 0:00:05]}  Rxd6 {[%clk 0:00:02]} 55. cxd6 {[%clk 0:00:06]}  Kxd6 {[%clk 0:00:02]} 56. bxa5 {[%clk 0:00:07]}  Kc5 {[%clk 0:00:02]} 57. a3 {[%clk 0:00:05]} 1-0


[Site "https://www.chess.com"]

[Event "Titled Tuesday Blitz May 31 Late 2022"]
[White "Sadhwani, Raunak"]
[Black "Livaic, Leon"]
[WhiteFideId "35093487"]
[BlackFideId "14531534"]
[WhiteElo "2616"]
[BlackElo "2540"]
[Result "0-1"]
[Round "11"]
[TimeControl "180+1"]
[Date "2022.05.31"]
[WhiteClock "0:00:07"]
[BlackClock "0:00:06"]

1. d4 {[%clk 0:03:00]}  Nf6 {[%clk 0:02:56]} 2. Nf3 {[%clk 0:03:00]}  e6 {[%clk 0:02:56]} 3. Bf4 {[%clk 0:03:00]}  b6 {[%clk 0:02:56]} 4. e3 {[%clk 0:03:00]}  Bb7 {[%clk 0:02:56]} 5. Nbd2 {[%clk 0:02:59]}  c5 {[%clk 0:02:57]} 6. h3 {[%clk 0:02:57]}  cxd4 {[%clk 0:02:57]} 7. exd4 {[%clk 0:02:57]}  Be7 {[%clk 0:02:57]} 8. Be2 {[%clk 0:02:56]}  O-O {[%clk 0:02:58]} 9. O-O {[%clk 0:02:56]}  d6 {[%clk 0:02:58]} 10. Bh2 {[%clk 0:02:56]}  Nbd7 {[%clk 0:02:59]} 11. a4 {[%clk 0:02:57]}  a6 {[%clk 0:02:59]} 12. a5 {[%clk 0:02:57]}  b5 {[%clk 0:02:59]} 13. c4 {[%clk 0:02:57]}  bxc4 {[%clk 0:03:00]} 14. Nxc4 {[%clk 0:02:58]}  Qb8 {[%clk 0:02:59]} 15. Qa4 {[%clk 0:02:59]}  Rc8 {[%clk 0:02:54]} 16. Qa3 {[%clk 0:02:44]}  Ne8 {[%clk 0:02:09]} 17. Ne3 {[%clk 0:02:25]}  Ndf6 {[%clk 0:02:01]} 18. Nd2 {[%clk 0:02:16]}  Qa7 {[%clk 0:01:39]} 19. Ndc4 {[%clk 0:02:13]}  Rd8 {[%clk 0:01:06]} 20. Nb6 {[%clk 0:02:10]}  Rab8 {[%clk 0:01:06]} 21. Rfc1 {[%clk 0:01:56]}  Nd7 {[%clk 0:01:01]} 22. Nec4 {[%clk 0:01:57]}  Nxb6 {[%clk 0:00:57]} 23. Nxb6 {[%clk 0:01:51]}  Be4 {[%clk 0:00:55]} 24. Qe3 {[%clk 0:01:46]}  Nf6 {[%clk 0:00:44]} 25. Ra3 {[%clk 0:01:45]}  Qb7 {[%clk 0:00:43]} 26. Bf1 {[%clk 0:01:40]}  Nd7 {[%clk 0:00:33]} 27. Rb3 {[%clk 0:01:33]}  Bc6 {[%clk 0:00:28]} 28. Rcc3 {[%clk 0:01:11]}  Bb5 {[%clk 0:00:18]} 29. Bxb5 {[%clk 0:01:09]}  axb5 {[%clk 0:00:19]} 30. Rxb5 {[%clk 0:01:09]}  Qa6 {[%clk 0:00:16]} 31. Qd3 {[%clk 0:00:37]}  Nxb6 {[%clk 0:00:16]} 32. axb6 {[%clk 0:00:33]}  Rxb6 {[%clk 0:00:16]} 33. Rxb6 {[%clk 0:00:33]}  Qxb6 {[%clk 0:00:17]} 34. b3 {[%clk 0:00:29]}  Bf6 {[%clk 0:00:13]} 35. Rc4 {[%clk 0:00:24]}  d5 {[%clk 0:00:13]} 36. Ra4 {[%clk 0:00:25]}  Rc8 {[%clk 0:00:12]} 37. Bg3 {[%clk 0:00:25]}  h5 {[%clk 0:00:11]} 38. h4 {[%clk 0:00:25]}  g6 {[%clk 0:00:10]} 39. Qe3 {[%clk 0:00:17]}  Qc6 {[%clk 0:00:09]} 40. Ra7 {[%clk 0:00:15]}  Qc1+ {[%clk 0:00:08]} 41. Kh2 {[%clk 0:00:15]}  Qxe3 {[%clk 0:00:08]} 42. fxe3 {[%clk 0:00:16]}  Rc3 {[%clk 0:00:08]} 43. b4 {[%clk 0:00:10]}  Rxe3 {[%clk 0:00:08]} 44. b5 {[%clk 0:00:10]}  Rb3 {[%clk 0:00:07]} 45. Rb7 {[%clk 0:00:10]}  Bxd4 {[%clk 0:00:08]} 46. Bc7 {[%clk 0:00:10]}  Kg7 {[%clk 0:00:07]} 47. b6 {[%clk 0:00:11]}  Kf6 {[%clk 0:00:07]} 48. Bd8+ {[%clk 0:00:08]}  Kg7 {[%clk 0:00:06]} 49. Rb8 {[%clk 0:00:07]}  Be5+ {[%clk 0:00:06]} 0-1


[Site "https://www.chess.com"]

[Event "Titled Tuesday Blitz May 31 Late 2022"]
[White "Shuvalova, Polina"]
[Black "Fier, Alexandr"]
[WhiteFideId "24171760"]
[BlackFideId "2107139"]
[WhiteElo "2355"]
[BlackElo "2571"]
[Result "1-0"]
[Round "11"]
[TimeControl "180+1"]
[Date "2022.05.31"]
[WhiteClock "0:01:16"]
[BlackClock "0:02:05"]

1. e4 {[%clk 0:03:00]}  c5 {[%clk 0:02:57]} 2. Nc3 {[%clk 0:02:57]}  a6 {[%clk 0:02:57]} 3. Nge2 {[%clk 0:02:55]}  b5 {[%clk 0:02:57]} 4. g3 {[%clk 0:02:55]}  Bb7 {[%clk 0:02:57]} 5. Bg2 {[%clk 0:02:56]}  e6 {[%clk 0:02:57]} 6. O-O {[%clk 0:02:53]}  h5 {[%clk 0:02:56]} 7. d4 {[%clk 0:02:44]}  cxd4 {[%clk 0:02:55]} 8. Nxd4 {[%clk 0:02:44]}  h4 {[%clk 0:02:55]} 9. Re1 {[%clk 0:02:43]}  hxg3 {[%clk 0:02:50]} 10. hxg3 {[%clk 0:02:42]}  Qc7 {[%clk 0:02:48]} 11. Bf4 {[%clk 0:02:36]}  d6 {[%clk 0:02:47]} 12. Ndxb5 {[%clk 0:02:33]}  axb5 {[%clk 0:02:47]} 13. Nxb5 {[%clk 0:02:34]}  Qb6 {[%clk 0:02:46]} 14. Nxd6+ {[%clk 0:02:27]}  Bxd6 {[%clk 0:02:46]} 15. Qxd6 {[%clk 0:02:05]}  Qxd6 {[%clk 0:02:46]} 16. Bxd6 {[%clk 0:02:06]}  Nf6 {[%clk 0:02:43]} 17. a4 {[%clk 0:02:02]}  Nfd7 {[%clk 0:02:43]} 18. b4 {[%clk 0:02:01]}  Nc6 {[%clk 0:02:40]} 19. e5 {[%clk 0:01:57]}  Nd8 {[%clk 0:02:37]} 20. c4 {[%clk 0:01:51]}  Bxg2 {[%clk 0:02:36]} 21. Kxg2 {[%clk 0:01:52]}  Nb6 {[%clk 0:02:37]} 22. c5 {[%clk 0:01:34]}  Nd5 {[%clk 0:02:29]} 23. b5 {[%clk 0:01:31]}  f5 {[%clk 0:02:13]} 24. a5 {[%clk 0:01:28]}  Nb7 {[%clk 0:02:06]} 25. a6 {[%clk 0:01:26]}  Nxd6 {[%clk 0:02:06]} 26. exd6 {[%clk 0:01:25]}  Kd7 {[%clk 0:02:07]} 27. Rad1 {[%clk 0:01:18]}  Rhc8 {[%clk 0:02:04]} 28. Rxd5 {[%clk 0:01:15]}  exd5 {[%clk 0:02:04]} 29. Re7+ {[%clk 0:01:15]}  Kd8 {[%clk 0:02:05]} 30. c6 {[%clk 0:01:16]} 1-0


[Site "https://www.chess.com"]

[Event "Titled Tuesday Blitz May 31 Late 2022"]
[White "Sibilio, Mario"]
[Black "Suich, Peter D"]
[WhiteFideId "800422"]
[BlackFideId "2050366"]
[WhiteElo "2296"]
[BlackElo "2436"]
[Result "1-0"]
[Round "11"]
[TimeControl "180+1"]
[Date "2022.06.01"]
[WhiteClock "0:01:00"]
[BlackClock "0:00:04"]

1. d4 {[%clk 0:02:59]}  d5 {[%clk 0:02:59]} 2. Nf3 {[%clk 0:02:51]}  Nf6 {[%clk 0:02:59]} 3. c4 {[%clk 0:02:49]}  c6 {[%clk 0:02:58]} 4. Nc3 {[%clk 0:02:48]}  dxc4 {[%clk 0:02:59]} 5. e4 {[%clk 0:02:47]}  b5 {[%clk 0:02:58]} 6. a3 {[%clk 0:02:47]}  e6 {[%clk 0:02:56]} 7. Be2 {[%clk 0:02:40]}  Nbd7 {[%clk 0:02:56]} 8. O-O {[%clk 0:02:33]}  Bb7 {[%clk 0:02:54]} 9. e5 {[%clk 0:02:28]}  Nd5 {[%clk 0:02:50]} 10. Ne4 {[%clk 0:02:28]}  h6 {[%clk 0:02:50]} 11. b3 {[%clk 0:02:04]}  c3 {[%clk 0:02:28]} 12. Qc2 {[%clk 0:02:01]}  a6 {[%clk 0:02:18]} 13. Nxc3 {[%clk 0:01:54]}  Nxc3 {[%clk 0:02:19]} 14. Qxc3 {[%clk 0:01:53]}  c5 {[%clk 0:02:20]} 15. a4 {[%clk 0:01:48]}  cxd4 {[%clk 0:02:15]} 16. Qxd4 {[%clk 0:01:42]}  Bc5 {[%clk 0:02:13]} 17. Qg4 {[%clk 0:01:41]}  g6 {[%clk 0:01:52]} 18. axb5 {[%clk 0:01:33]}  h5 {[%clk 0:01:45]} 19. Qf4 {[%clk 0:01:32]}  axb5 {[%clk 0:01:34]} 20. Rxa8 {[%clk 0:01:31]}  Qxa8 {[%clk 0:01:27]} 21. Bxb5 {[%clk 0:01:29]}  Bxf3 {[%clk 0:01:26]} 22. Bxd7+ {[%clk 0:01:28]}  Kxd7 {[%clk 0:01:20]} 23. Qxf7+ {[%clk 0:01:27]}  Be7 {[%clk 0:01:20]} 24. gxf3 {[%clk 0:01:27]}  Qd5 {[%clk 0:01:18]} 25. Bg5 {[%clk 0:01:25]}  Re8 {[%clk 0:01:14]} 26. Ra1 {[%clk 0:01:23]}  Qd4 {[%clk 0:01:12]} 27. Ra6 {[%clk 0:01:16]}  Qxe5 {[%clk 0:00:16]} 28. Bxe7 {[%clk 0:01:06]}  Rxe7 {[%clk 0:00:05]} 29. Ra7+ {[%clk 0:01:05]}  Kc6 {[%clk 0:00:05]} 30. Qxe7 {[%clk 0:01:02]}  Qe1+ {[%clk 0:00:04]} 31. Kg2 {[%clk 0:01:02]}  Qc3 {[%clk 0:00:04]} 32. Rc7+ {[%clk 0:01:00]} 1-0


[Site "https://www.chess.com"]

[Event "Titled Tuesday Blitz May 31 Late 2022"]
[White "Svicevic, Rastko"]
[Black "Yurasova, Daria"]
[WhiteFideId "916315"]
[BlackFideId "34146919"]
[WhiteElo "2132"]
[BlackElo "2021"]
[Result "0-1"]
[Round "11"]
[TimeControl "180+1"]
[Date "2022.06.01"]
[WhiteClock "0:00:08"]
[BlackClock "0:00:11"]

1. d4 {[%clk 0:03:00]}  d5 {[%clk 0:02:59]} 2. Bg5 {[%clk 0:03:01]}  f6 {[%clk 0:02:59]} 3. Bh4 {[%clk 0:03:01]}  Nh6 {[%clk 0:02:58]} 4. f3 {[%clk 0:03:01]}  Be6 {[%clk 0:02:56]} 5. c3 {[%clk 0:02:59]}  Bf7 {[%clk 0:02:56]} 6. e4 {[%clk 0:02:58]}  e6 {[%clk 0:02:53]} 7. Bd3 {[%clk 0:02:52]}  Be7 {[%clk 0:02:52]} 8. Ne2 {[%clk 0:02:52]}  O-O {[%clk 0:02:52]} 9. O-O {[%clk 0:02:53]}  c5 {[%clk 0:02:51]} 10. dxc5 {[%clk 0:02:51]}  Bxc5+ {[%clk 0:02:51]} 11. Kh1 {[%clk 0:02:51]}  Nc6 {[%clk 0:02:51]} 12. Nd2 {[%clk 0:02:48]}  d4 {[%clk 0:02:36]} 13. Nb3 {[%clk 0:02:46]}  Bb6 {[%clk 0:02:36]} 14. cxd4 {[%clk 0:02:17]}  Nxd4 {[%clk 0:02:34]} 15. e5 {[%clk 0:02:11]}  Nhf5 {[%clk 0:02:19]} 16. Nexd4 {[%clk 0:02:09]}  Nxh4 {[%clk 0:01:55]} 17. exf6 {[%clk 0:02:07]}  Qxf6 {[%clk 0:01:55]} 18. Rc1 {[%clk 0:01:22]}  Rad8 {[%clk 0:01:50]} 19. Ne2 {[%clk 0:01:10]}  Nf5 {[%clk 0:01:49]} 20. Qc2 {[%clk 0:00:39]}  Ne3 {[%clk 0:01:21]} 21. Qb1 {[%clk 0:00:34]}  Nxf1 {[%clk 0:01:15]} 22. Rxf1 {[%clk 0:00:35]}  Bg6 {[%clk 0:01:10]} 23. Bxg6 {[%clk 0:00:30]}  Qxg6 {[%clk 0:01:11]} 24. Qc1 {[%clk 0:00:28]}  Qd3 {[%clk 0:01:02]} 25. Nc3 {[%clk 0:00:26]}  Qe3 {[%clk 0:00:33]} 26. Qb1 {[%clk 0:00:16]}  h6 {[%clk 0:00:26]} 27. Ne4 {[%clk 0:00:16]}  Qd3 {[%clk 0:00:23]} 28. Qe1 {[%clk 0:00:15]}  a5 {[%clk 0:00:17]} 29. Ng3 {[%clk 0:00:16]}  a4 {[%clk 0:00:16]} 30. Qxe6+ {[%clk 0:00:15]}  Kh8 {[%clk 0:00:17]} 31. Nc1 {[%clk 0:00:13]}  Qd6 {[%clk 0:00:15]} 32. Qe4 {[%clk 0:00:11]}  Bc7 {[%clk 0:00:13]} 33. Qxa4 {[%clk 0:00:10]}  Qa6 {[%clk 0:00:11]} 34. Qc2 {[%clk 0:00:08]}  Bxg3 {[%clk 0:00:11]} 0-1


[Site "https://www.chess.com"]

[Event "Titled Tuesday Blitz May 31 Late 2022"]
[White "Yurovskykh, Oleksandr"]
[Black "Tanenbaum, Zachary"]
[WhiteFideId "14134020"]
[BlackFideId "2060850"]
[WhiteElo "2292"]
[BlackElo "2168"]
[Result "0-1"]
[Round "11"]
[TimeControl "180+1"]
[Date "2022.05.31"]
[WhiteClock "0:00:08"]
[BlackClock "0:01:12"]

1. d4 {[%clk 0:03:00]}  d5 {[%clk 0:02:59]} 2. Bf4 {[%clk 0:03:00]}  Nf6 {[%clk 0:03:00]} 3. e3 {[%clk 0:03:01]}  c5 {[%clk 0:02:59]} 4. c3 {[%clk 0:03:01]}  Nc6 {[%clk 0:02:59]} 5. Nd2 {[%clk 0:03:00]}  Qb6 {[%clk 0:02:59]} 6. Qb3 {[%clk 0:03:00]}  c4 {[%clk 0:03:00]} 7. Qc2 {[%clk 0:02:50]}  g6 {[%clk 0:03:00]} 8. e4 {[%clk 0:02:49]}  dxe4 {[%clk 0:03:01]} 9. Bxc4 {[%clk 0:02:41]}  Bf5 {[%clk 0:03:00]} 10. Qb3 {[%clk 0:02:40]}  Qxb3 {[%clk 0:02:57]} 11. axb3 {[%clk 0:02:41]}  Bg7 {[%clk 0:02:53]} 12. Ne2 {[%clk 0:02:40]}  O-O {[%clk 0:02:52]} 13. Ng3 {[%clk 0:02:35]}  Rfd8 {[%clk 0:02:41]} 14. b4 {[%clk 0:02:08]}  Nd5 {[%clk 0:02:24]} 15. Bxd5 {[%clk 0:01:46]}  Rxd5 {[%clk 0:02:25]} 16. Ndxe4 {[%clk 0:01:46]}  e5 {[%clk 0:01:49]} 17. dxe5 {[%clk 0:01:40]}  Nxe5 {[%clk 0:01:42]} 18. O-O {[%clk 0:01:09]}  Nd3 {[%clk 0:01:42]} 19. Bc1 {[%clk 0:01:00]}  Bd7 {[%clk 0:01:34]} 20. Rd1 {[%clk 0:00:35]}  Nxb4 {[%clk 0:01:27]} 21. Rxd5 {[%clk 0:00:34]}  Nxd5 {[%clk 0:01:28]} 22. Nc5 {[%clk 0:00:30]}  Bc6 {[%clk 0:01:28]} 23. Nd3 {[%clk 0:00:30]}  a6 {[%clk 0:01:21]} 24. Nf4 {[%clk 0:00:30]}  Re8 {[%clk 0:01:13]} 25. Nxd5 {[%clk 0:00:30]}  Re1+ {[%clk 0:01:13]} 26. Nf1 {[%clk 0:00:28]}  Bxd5 {[%clk 0:01:12]} 27. b3 {[%clk 0:00:15]}  Bxc3 {[%clk 0:01:12]} 28. Ra5 {[%clk 0:00:08]}  Bxa5 {[%clk 0:01:12]} 0-1


[Site "https://www.chess.com"]